Cogmind - Beta 13 X1 @@@ ROGUE MODE // 2023.10.20 @ 22:56:47 Player: Plexion Result: Destroyed by DAS Turret with DAS Cannon Performance ------------- Evolutions (1) 500 Regions Visited (5) 1000 Robots Destroyed (64) 320 Value Destroyed (1323) 1323 Prototype IDs (2) 40 Alien Tech Used (0) 0 Bonus (95) 95 TOTAL SCORE: 3278 Bonus ------- High Alert Combat Kills 65 Follower Combat Kills 42 Friendly Fire -12 Cogmind --------- Core Integrity 0/400 Matter 8/300 Energy 100/100 System Corruption 3% Temperature Cool (0) Movement Core (400) Ox7 Location -9/Exiles Parts ------- > --- POWER (1) -------- (None) > --- PROPULSION (2) --- (None) > --- UTILITY (4) ------ Large Storage Unit Armor Integrity Analyzer > --- WEAPON (2) ------- Mace > --- INVENTORY (15) --- Experimental Heat Sink High-capacity Matter Pod (81) Heavy Assault Rifle Heavy Assault Rifle Improved Assault Rifle Peak State ------------ > --- POWER ------------ Improved Ion Engine > --- PROPULSION ------- Light Treads Improved Treads > --- UTILITY ---------- Large Storage Unit Armor Integrity Analyzer Light Armor Plating Shield Generator > --- WEAPON ----------- Improved Assault Rifle Improved Assault Rifle > --- INVENTORY -------- Light Treads Light Treads Light Treads Light Treads Light Armor Plating Heavy Assault Rifle Heavy Assault Rifle Heavy Assault Rifle Heavy Assault Rifle Improved Assault Rifle Rocket Launcher Mace [Rating: 21] Favorites ----------- Power Improved Ion Engine Engine Improved Ion Engine Propulsion Improved Treads Treads Improved Treads Utility Light Armor Plating Device Shield Generator Storage Large Storage Unit Processor Targeting Computer Protection Light Armor Plating Weapon Improved Assault Rifle Energy Gun Medium Laser Ballistic Gun Improved Assault Rifle Launcher Rocket Launcher Impact Weapon Mace Build | -11 -10 -10 -9 -9 -9 ------- Run | Jun Mat Min Mat Min Exi Slots Evolved 2 | . . . 2 . . Power . | . . . . . . Propulsion . | . . . . . . Utility 2 | . . . 2 . . Weapon . | . . . . . . Parts Attached 65 | 7 4 4 26 3 21 Power 4 | 1 1 1 1 . . Engine 4 | 1 1 1 1 . . Core . | . . . . . . Reactor . | . . . . . . Propulsion 15 | 2 1 . 7 1 4 Treads 15 | 2 1 . 7 1 4 Leg . | . . . . . . Wheel . | . . . . . . Hover . | . . . . . . Flight . | . . . . . . Utility 17 | 1 . 1 10 . 5 Device 5 | . . . 2 . 3 Storage 3 | 1 . . 2 . . Processor 4 | . . 1 2 . 1 Hackware . | . . . . . . Protection 5 | . . . 4 . 1 Artifact . | . . . . . . Weapon 29 | 3 2 2 8 2 12 Energy Gun 2 | 2 . . . . . Energy Cannon . | . . . . . . Ballistic Gun 18 | 1 2 1 6 1 7 Ballistic Cannon . | . . . . . . Launcher 6 | . . 1 2 1 2 Special Weapon . | . . . . . . Impact Weapon 3 | . . . . . 3 Slashing Weapon . | . . . . . . Piercing Weapon . | . . . . . . Special Melee Weapon . | . . . . . . Unidentified Prototypes 2 | . . . 1 . 1 Parts Lost 22 | . 2 1 4 . 15 Power 4 | . 1 1 1 . 1 Propulsion 7 | . 1 . . . 6 Utility 6 | . . . 3 . 3 Weapon 5 | . . . . . 5 Highest Loss Streak 8 | . 2 1 3 . 8 To Critical Strikes 7 | . . 1 . . 6 Average Slot Usage (%) 92 | . 81 93 96 100 79 Engine 10 | . 12 14 10 11 7 Treads 23 | . 25 28 21 22 21 Device 2 | . . . 6 . 1 Storage 11 | . 14 14 11 11 11 Processor 9 | . . 8 10 11 11 Protection 12 | . . . 13 22 15 Ballistic Gun 19 | . 13 27 21 22 5 Naked Turns . | . . . . . . Heaviest Build 39 | 12 16 16 39 39 39 Greatest Support 46 | 40 40 40 46 46 43 Greatest Overweight (x) 7 | . . . . . 7 Average Overweight (x) . | . . . . . . Largest Inventory Capacity 15 | 8 8 8 15 15 15 Average Capacity 12 | 7 8 8 11 15 15 Most Carried 15 | 2 8 8 15 15 15 Average Carried 10 | 1 3 7 10 14 11 Final Capacity 15 | 8 8 8 15 15 15 Final Carried 15 | 2 7 8 14 15 5 Class Distribution -------------------- 74% | Mutant 25% | Scavenger-Mutant Dominant Class ---------------- Mutant | -10/Materials Mutant | -10/Mines Mutant | -9/Materials Scavenger-Mutant | -9/Mines Scavenger-Mutant | -9/Exiles Resources | -11 -10 -10 -9 -9 -9 ----------- Run | Jun Mat Min Mat Min Exi Matter Collected 1927 | 270 108 127 803 377 242 Remotely . | . . . . . . Salvage Created 2190 | . 230 239 1357 236 128 Parts 142 | . 13 16 89 21 3 Haulers Intercepted 5 | . 1 . 4 . . Recyclers Shooed 2 | . . . 1 1 . Parts Field Recycled . | . . . . . . Retrieved Matter . | . . . . . . Parts Self-Destructed . | . . . . . . Prevented . | . . . . . . Kills | -11 -10 -10 -9 -9 -9 ------- Run | Jun Mat Min Mat Min Exi Combat Hostiles Destroyed 51 | . 5 10 22 7 7 Guns 32 | . 5 7 14 5 1 AOE 19 | . . 3 8 2 6 Classes Destroyed 11 | . 2 1 7 . 1 Worker 4 | . . . 2 2 . Builder 2 | . . . 2 . . Tunneler 1 | . . . 1 . . Hauler 5 | . 1 . 4 . . Recycler 5 | . . . 4 1 . Mechanic 2 | . . . 2 . . Swarmer 18 | . . 6 7 5 . Grunt 18 | . 5 4 7 2 . Brawler 1 | . . . 1 . . Sentry 7 | . . . 7 . . Assembled 6 | . . . . . 6 Best Kill Streak 10 | . 3 5 10 6 6 Combat Bots Only 7 | . 2 5 7 4 6 Max Kills in Single Turn 5 | . 2 2 5 2 2 Gunslinging 1 | . . 1 . . . Exploded 3 | . . 2 3 2 2 Melee . | . . . . . . Uniques/NPCs Destroyed 1 | . . . . . 1 8R-AWN (-9/Exiles) Combat | -11 -10 -10 -9 -9 -9 -------- Run | Jun Mat Min Mat Min Exi Damage Taken 3828 | . 564 347 803 128 1986 Core 605 | . 67 76 110 . 352 Absorbed by Shields 205 | . . . 146 . 59 Regen/Repaired (Parts) 168 | . . . 168 . . Core Remaining (%) 71 | 100 . 42 . . . Volleys Fired 188 | . 21 20 79 15 53 Largest 2 | . 2 2 2 2 2 Hottest 100 | . 100 46 46 46 46 Shots Fired 342 | . 41 37 152 28 84 Gun 317 | . 41 34 146 26 70 Cannon . | . . . . . . Launcher 25 | . . 3 6 2 14 Special . | . . . . . . Kinetic 302 | . 26 34 146 26 70 Thermal 15 | . 15 . . . . Explosive 25 | . . 3 6 2 14 Electromagnetic . | . . . . . . Robot Hit Streak 30 | . 5 10 20 7 30 Robot Miss Streak 4 | . 4 3 4 3 2 Penetration Max . | . . . . . . Secondary Targets 5 | . 2 3 . . . Max Gunslinging Chain 1 | . 1 1 . . . Shots Hit Robots 226 | . 24 25 102 13 62 Core Hits 126 | . 11 13 56 15 31 Critical Kills 2 | . 1 1 . . . Critical Parts Destroyed . | . . . . . . Critical Strikes 3 | . 2 1 . . . Burn 1 | . 1 . . . . Destroy 2 | . 1 1 . . . Melee Attacks 2 | . . . . . 2 Impact 2 | . . . . . 2 Slashing . | . . . . . . Piercing . | . . . . . . Sneak Attacks . | . . . . . . Combat Hostiles . | . . . . . . Follow-up Attacks . | . . . . . . Damage Inflicted 5151 | . 418 593 2426 409 1305 Guns 3404 | . 418 387 1556 223 820 Cannons . | . . . . . . Explosions 1721 | . . 194 856 186 485 Melee . | . . . . . . Ramming 26 | . . 12 14 . . Kinetic 3306 | . 320 387 1556 223 820 Thermal 98 | . 98 . . . . Explosive 1721 | . . 194 856 186 485 Electromagnetic . | . . . . . . Impact . | . . . . . . Slashing . | . . . . . . Piercing . | . . . . . . Highest Corruption 3 | . . . 3 3 3 Average Corruption 3 | . . . 3 3 3 Corruption Purged . | . . . . . . Corruption Blocked . | . . . . . . Effects 54 | . . . 13 18 23 Message Errors 9 | . . . 5 . 4 Matter Fused 13 | . . . 3 5 5 Heat Flow Errors 7 | . . . . 2 5 Energy Discharges 5 | . . . . 4 1 Parts Rejected 1 | . . . 1 . . Data Loss (minor) 8 | . . . 1 2 5 Data Loss (major) 3 | . . . 1 1 1 Misfires 2 | . . . 1 1 . Alerts 3 | . . . . 2 1 Weapon Failures 3 | . . . 1 1 1 Overload Shots . | . . . . . . Overflow Damage 46 | . . 20 13 8 5 Projectiles . | . . . . . . Explosions 46 | . . 20 13 8 5 Melee . | . . . . . . Knockbacks . | . . . . . . Impact . | . . . . . . Kinetic . | . . . . . . Secondary . | . . . . . . Self-Inflicted Damage 117 | . . . 66 . 51 Shots 5 | . . . 3 . 2 Rammed 5 | . . 3 2 . . Targets Rammed 5 | . . 3 2 . . Kicked . | . . . . . . Crushed . | . . . . . . Highest Temperature 261 | . 219 20 47 261 228 Average Temperature 71 | . 96 8 9 119 102 Received Heat Transfer 654 | . 303 75 267 9 . Effects 3 | . 2 . . . 1 Energy Bleed 1 | . . . . . 1 Interference 2 | . 2 . . . . Siege Activations . | . . . . . . Robots Corrupted . | . . . . . . Combat Hostiles . | . . . . . . Parts Fried . | . . . . . . Impact Corruptions . | . . . . . . Robots Melted . | . . . . . . Combat Hostiles . | . . . . . . Parts Melted 1 | . 1 . . . . Heat Transferred 370 | . 370 . . . . Parts Sabotaged . | . . . . . . Parts Stolen . | . . . . . . Parts Stripped . | . . . . . . Power Chain Reactions . | . . . . . . Missiles Intercepted . | . . . . . . Alert | -11 -10 -10 -9 -9 -9 ------- Run | Jun Mat Min Mat Min Exi Peak Influence 549 | . 163 343 549 420 . Initial 164 | . . 63 . 164 . Average 213 | . 76 159 249 244 . Maximum Alert Level 2 | . . 1 2 2 . Low Security (%) 54 | 100 100 74 47 36 . Level 1 27 | . . 25 13 61 . Level 2 17 | . . . 38 1 . Level 3 . | . . . . . . Level 4 . | . . . . . . Level 5 . | . . . . . . High Security . | . . . . . . Max Security . | . . . . . . Squads Dispatched 2 | . 2 . . . . Investigation 1 | . 1 . . . . Extermination . | . . . . . . Reinforcement 1 | . 1 . . . . Assault . | . . . . . . Garrison . | . . . . . . Intercept . | . . . . . . Searches Triggered . | . . . . . . Construction Impeded . | . . . . . . Haulers Reinforced . | . . . . . . Active Scanning Responses . | . . . . . . Cargo Convoy Interrupts . | . . . . . . Stealth | -11 -10 -10 -9 -9 -9 --------- Run | Jun Mat Min Mat Min Exi Distress Signals 9 | . 1 . 7 1 . Communications Jammed . | . . . . . . Distress Signals . | . . . . . . Times Spotted 132 | . 9 9 34 15 65 Peak Tracking Total 9 | . 6 4 9 4 9 Tactical Retreats 11 | . . . 3 1 7 Traps | -11 -10 -10 -9 -9 -9 ------- Run | Jun Mat Min Mat Min Exi Traps Triggered 1 | . 1 . . . . Indirectly . | . . . . . . Trap Hack Attempts . | . . . . . . Triggered . | . . . . . . Disarmed . | . . . . . . Reprogrammed . | . . . . . . Reused . | . . . . . . Traps Extracted . | . . . . . . Installed . | . . . . . . Triggered . | . . . . . . Machines | -11 -10 -10 -9 -9 -9 ---------- Run | Jun Mat Min Mat Min Exi Machines Disabled 13 | . . . 3 1 9 Max in Single Turn 2 | . . . 1 . 2 Machines Repaired . | . . . . . . Machines Sabotaged . | . . . . . . Overloaded Fab Kills . | . . . . . . Hacking | -11 -10 -10 -9 -9 -9 --------- Run | Jun Mat Min Mat Min Exi Machines Accessed 7 | . . . 6 . 1 Terminals 3 | . . . 3 . . Fabricators . | . . . . . . Repair Stations 1 | . . . 1 . . Recycling Units 2 | . . . 2 . . Scanalyzers . | . . . . . . Garrison Access . | . . . . . . Total Hacks 18 | . . . 17 . 1 Successful 8 | . . . 7 . 1 Failed 10 | . . . 10 . . Catastrophic 2 | . . . 2 . . Database Lockouts . | . . . . . . Manual 12 | . . . 12 . . Terminals 8 | . . . 8 . . Fabricators . | . . . . . . Repair Stations 5 | . . . 5 . . Recycling Units 4 | . . . 4 . . Scanalyzers . | . . . . . . Garrison Access . | . . . . . . Terminal Hacks 2 | . . . 1 . 1 Record 1 | . . . . . 1 Zone Layout 1 | . . . 1 . . Fabricator Hacks . | . . . . . . Repair Station Hacks 4 | . . . 4 . . Scan Component 2 | . . . 2 . . Repair 2 | . . . 2 . . Recycling Unit Hacks . | . . . . . . Scanalyzer . | . . . . . . Garrison Access Hacks . | . . . . . . Unauthorized Hacks 2 | . . . 2 . . Terminals . | . . . . . . Fabricators . | . . . . . . Repair Stations . | . . . . . . Recycling Units 2 | . . . 2 . . Reject 1 | . . . 1 . . Mask 1 | . . . 1 . . Scanalyzers . | . . . . . . Garrison Access . | . . . . . . Data Cores Recovered . | . . . . . . Used . | . . . . . . Hacking Detections 6 | . . . 6 . . Full Trace Events 2 | . . . 2 . . Feedback Events . | . . . . . . Feedback Blocked . | . . . . . . Robot Schematics Acquired . | . . . . . . Robots Built . | . . . . . . Authchips . | . . . . . . Time . | . . . . . . Total Robot Build Rating . | . . . . . . Part Schematics Acquired . | . . . . . . Parts Built . | . . . . . . Authchips . | . . . . . . Time . | . . . . . . Total Part Build Rating . | . . . . . . Parts Repaired 2 | . . . 2 . . Time 58 | . . . 58 . . Parts Recycled . | . . . . . . Recycled Matter . | . . . . . . Retrieved Matter . | . . . . . . Retrieved Components . | . . . . . . Parts Scanalyzed . | . . . . . . Part Schematics Acquired . | . . . . . . Parts Damaged . | . . . . . . Bothacking | -11 -10 -10 -9 -9 -9 ------------ Run | Jun Mat Min Mat Min Exi Used RIF Installer . | . . . . . . Robots Hacked . | . . . . . . Non-combat . | . . . . . . Combat . | . . . . . . Robot Hacks Applied . | . . . . . . Relay Couplers Released . | . . . . . . Fabnet Peak Effective % . | . . . . . . Robots Rewired . | . . . . . . Allies Hacked . | . . . . . . Hacks Repelled . | . . . . . . Allies | -11 -10 -10 -9 -9 -9 -------- Run | Jun Mat Min Mat Min Exi Total Allies 3 | . . . . 3 . Largest Group 3 | . . . . 3 . Highest-Rated Group 40 | . . . . 40 . Highest-Rated Ally 16 | . . . . 16 . Total Orders . | . . . . . . Ally Attacks 36 | . . . . 36 . Total Damage 248 | . . . . 248 . Kills 7 | . . . . 7 . Allies Corrupted . | . . . . . . Allies Melted . | . . . . . . Intel | -11 -10 -10 -9 -9 -9 ------- Run | Jun Mat Min Mat Min Exi Robot Analysis Total . | . . . . . . Derelict Logs Recovered 4 | . . 2 . 2 . Drone Launches . | . . . . . . Drone Recoveries . | . . . . . . Exploration | -11 -10 -10 -9 -9 -9 ------------- Run | Jun Mat Min Mat Min Exi Turns Passed 5042 | 74 256 878 1841 1010 983 Spaces Moved 2583 | 41 113 506 891 566 466 Core 4 | 3 . . . . 1 Treads 2579 | 38 113 506 891 566 465 Legs . | . . . . . . Wheels . | . . . . . . Hover . | . . . . . . Flight . | . . . . . . Fastest Speed 50 | 50 160 160 160 160 160 Average Speed 160 | 151 160 160 160 160 161 Slowest Speed 400 | 160 160 160 160 160 400 Overloaded Moves . | . . . . . . Propulsion Burnouts . | . . . . . . Robots Hopped . | . . . . . . Cave-ins Triggered . | . . . . . . Exploration Rate (%) 54 | 5 21 99 59 85 59 Regions Visited 5 Branch Regions 3 Pre-discovered Areas 2 | . . 1 . . 1 Known Exits Taken . | . . . . . . Unknown Exits Taken 5 | 1 1 1 1 1 . Scrap Searched 4 | . . 1 . 3 . Spaces Dug 43 | . . 11 14 12 6 Terrain Destroyed 148 | . . 29 58 20 41 Melee . | . . . . . . Projectile . | . . . . . . AOE 148 | . . 29 58 20 41 Terrain Rammed . | . . . . . . Walls Destroyed . | . . . . . . Machines Disabled . | . . . . . . Actions | -11 -10 -10 -9 -9 -9 --------- Run | Jun Mat Min Mat Min Exi Total 3138 | 49 147 534 1157 643 608 Wait 241 | . 4 . 127 53 57 Move 2578 | 40 112 505 890 565 466 Hop . | . . . . . . Pick Up 29 | 2 4 2 14 4 3 Fast Attach 22 | 6 3 1 11 . 1 Attach 15 | . 1 1 1 . 12 Detach 6 | . 2 . 2 . 2 Swap 28 | 1 . 2 14 3 8 Drop 24 | . . . 17 3 4 Fire 188 | . 21 20 79 15 53 Melee 2 | . . . . . 2 Ram . | . . . . . . Kick . | . . . . . . Crush 5 | . . 3 2 . . Escape Stasis . | . . . . . . Rewire . | . . . . . . Trap . | . . . . . . Miscellaneous . | . . . . . . Route ------- -11/Junkyard -10/Materials (discovered 2 exits: *Mat / *Min) -10/Mines (discovered 3 exits: *Mat x2 / [*Sub]) -9/Materials (discovered 2 exits: [*Min] / [*Sto]) -9/Mines (discovered 3 exits: [*Mat x2] / *Exi) -9/Exiles (discovered 1 exit: [*Min]) History --------- Turn | Location | Event 41 | -11/Junkyard | Discovered new exit (range 15) 75 | -11/Junkyard | Entered Materials 170 | -10/Materials | Discovered new exit (range 9) 302 | -10/Materials | Build established: Mutant 322 | -10/Materials | Discovered new exit (range 6) 331 | -10/Materials | Entered Mines 365 | -10/Mines | Received a Rocket Launcher from a helpful Derelict 422 | -10/Mines | Discovered new exit (range 10) 518 | -10/Mines | Core integrity fell below 50% 531 | -10/Mines | A weapon hastily lodged in a ceiling crevice suddenly fell to the ground 647 | -10/Mines | Discovered new exit (range 12) 671 | -10/Mines | Learned location of Zion (-6) 841 | -10/Mines | Discovered new exit (range 11) 1172 | -10/Mines | Learned Materials trap positions 1209 | -10/Mines | Entered Materials 1209 | -9/Materials | Evolved 2 slots: Utility x2 1210 | -9/Materials | Loaded intel: 15 trap records 1993 | -9/Materials | Repaired Lgt. Armor Plating 2112 | -9/Materials | Destroyed 7 combat bots 2369 | -9/Materials | Discovered new exit (range 7) 2420 | -9/Materials | Lost 3 parts (1p2u) 2438 | -9/Materials | Discovered new exit (range 10) 2839 | -9/Materials | Repaired Imp. Treads 3050 | -9/Materials | Entered Mines 3051 | -9/Mines | Assembled infested the area 3056 | -9/Mines | Assisted by a Guerilla fighting off Assembled 3057 | -9/Mines | Assisted by bots powering up and referring to "LRC-V3" 3277 | -9/Mines | Deemed a non-threat by the Exiles lab entrance 3519 | -9/Mines | Learned Materials terminal intel 3643 | -9/Mines | Found a hidden stash of uninstalled traps 3765 | -9/Mines | Build established: Scavenger-Mutant 3787 | -9/Mines | Discovered new exit (range 6) 3800 | -9/Mines | Discovered new exit (range 8) 3805 | -9/Mines | Learned Materials garrison access intel 4054 | -9/Mines | Discovered new exit (range 5) 4060 | -9/Mines | Entered Exiles 4100 | -9/Exiles | Met 8R-AWN 4127 | -9/Exiles | Met EX-HEX 4186 | -9/Exiles | Met EX-DEC 4307 | -9/Exiles | Discovered new exit (range 11) 4706 | -9/Exiles | Attacked by the Exiles 4897 | -9/Exiles | Core integrity fell below 50% 4899 | -9/Exiles | Destroyed 8R-AWN 4922 | -9/Exiles | Lost 8 parts (3n3u2w) 4991 | -9/Exiles | Build established: Mutant 5026 | -9/Exiles | Core integrity fell below 20% 5043 | -9/Exiles | Destroyed by DAS Turret with DAS Cannon Last Messages --------------- 04902_ Acquired 115 matter. 04907_ Acquired Prototype Device. 04907_ Identified Exp. Heat Sink. 04941_ System corrupted: Substantial component data lost. 04941_ Acquired 8 matter. 04954_ The unstable cave ceiling collapses. 04961_ System corrupted: Matter fused (-9). 04979_ Hvy. Assault Rifle destroyed. 04980_ System corrupted: Matter fused (-5). 04981_ The unstable cave ceiling collapses. 04981_ Rocket Launcher destroyed. 05017_ System corrupted: Heat flow error (+200). 05020_ Machine disabled. 05025_ Lgt. Treads destroyed. 05025_ Knocked back. 05027_ Hvy. Assault Rifle destroyed. 05027_ Knocked back. 05036_ System corrupted: Component data lost. 05039_ Lgt. Treads destroyed. 05039_ Knocked back. Map ----- +----------------------------------------------------+ | #####" #???????????? """?????????? | | ##" " #????????????" """?????????? | | # #" #"#????????????" ?????????? | | #"## #???????????"" ?????????#" | | ####### #???????????"" "#????????#" | | ??????### ##?????????? ""?????????#" | | ########" ##??????????" "?????????##" | | # !!""""" ######?????# #????????##"" | | #! "### # ##?#### ###?######"" | | #! "#### ##""X# #"###""""""" | | #! ##?# """""" " "" | | # !"""" "###??# " """ " | | ######"###????# ## %% " " | | ????? #???????##### # % | | ???? #????????????# | | ???##?????????????# # | | ??????????????????# #### % | | ??????????????????# #??## | | ??????????????????# #???# """"" | | ??????????????????? ???## ###### | | ??????????????????? ???# ""##????# | | ???????????????????#??## %% """##?????? | | ??????????????????????# % """##??????? | | ??????????????????????#%""" ""#???????? | | ??????????????????????##" % ########?? | | ???????????????????????#"@ ## ### | | ???????????????????????#" "" | | ???????????????????????##" t | | ????????????????????????#% | | ????????????????????????# | | ????????????????????????# " | | ????????????????????????## "" ""## | | ?????????????????????????#"" ""#### | | ?????????????????????????#" """"##??# | | ?????????????????????????#""" """#???# | | ??????????????????????????# ""##???! | | ??????????????????????????#"" """##???#" | | ????????????????????????????"" #?????#" | | ?????????????????????????????"""" ##??????!! | | ???????????????????????????????? #???????## | | ????????????????????????????????### #?????????? | | ??????????????????????????????????## ??????????? | | ???????????????????????????????????? ??????????? | | ?????????????????????????????????????????????????? | | ?????????????????????????????????????????????????? | | ?????????????????????????????????????????????????? | | ?????????????????????????????????????????????????? | | ?????????????????????????????????????????????????? | | ?????????????????????????????????????????????????? | | ?????????????????????????????????????????????????? | +----------------------------------------------------+ Best States ------------- Heat Dissipation 28 Energy Generation 12 Energy Capacity 265 Matter Stores 300 Matter Capacity 300 Sight Range 16 Terrain Scan Range 14 Terrain Scan Density 10 Armor Coverage 300 Evasion (%) 40 Targeting Accuracy 10 Armor Integrity Analysis 30 Recoil Reduction 2 Item Schematics ----------------- None Robot Schematics ------------------ None Fabricated ------------ Nothing Alien Tech Used ----------------- None Achievements -------------- None Challenges ------------ None Game ------ Seed ThunderRecoilActivator Manual? 0 Play Time 00:24:33 Cumulative 450.6 hours Start 2023.10.20 @ 20:09:18 End 2023.10.20 @ 22:56:47 Sessions 3 Manual Loads 0 Difficulty Rogue Special Mode None Game No. 524 Rogue 437 Adventurer 87 Explorer 0 Win Type - Total 25 Types 8/0/14/1/1/0/1/0/0 Lore% 89 Gallery% 92 Achievement% 76 Wizard Run 0 Options --------- ASCII 0 Keyboard 1 Movement Numpad Keybinds 0 Fullscreen 1 Font 18/SmallcapsGlow Map View 76x50 Tactical HUD 1 Map Filters NONE Filters NONE Steam 1 RUN: aa99538a-5f8d-4abf-ba93-028ebf604119